bitfinex/quotes_ETHUSD_20260129
["timestamp","ask_amount","ask_price","bid_price","bid_amount"]
[1769688539906,0.001,2933.0,2932.2,12.52616892]
[1769688540208,0.001,2933.0,2932.5,12.52410332]
[1769688540407,0.001,2933.0,2932.6,0.03409943]
[1769688540611,0.001,2933.0,2932.5,12.52410332]
[1769688541315,0.001,2933.0,2932.2,0.85458608]
[1769688541480,1.09731577,2932.9,2932.2,0.85458608]
[1769688545311,11.82555229,2933.0,2932.2,0.85458608]
[1769688546521,0.001,2933.0,2932.3,11.67158841]
[1769688546917,0.001,2932.8,2932.3,11.67158841]
[1769688547398,0.001,2932.8,2932.3,12.5241529]
[1769688547794,0.001,2932.8,2932.3,11.67158841]
[1769688547994,10.97315769,2932.8,2932.2,0.002]
[1769688548202,12.07057346,2932.8,2932.2,0.002]
[1769688549211,0.85245678,2932.7,2932.2,0.002]
[1769688549394,10.97215769,2932.6,2932.2,0.002]
[1769688550407,0.85245678,2932.7,2932.2,0.002]
[1769688553319,12.92302291,2932.8,2932.2,0.002]
[1769688553622,0.001,2932.8,2932.2,11.67358841]
[1769688554206,0.001,2932.8,2932.4,11.67158841]
[1769688554825,0.001,2933.0,2932.4,11.67158841]
[1769688555018,0.001,2933.0,2932.5,11.67158841]
[1769688556329,0.001,2933.0,2932.6,0.85248584]
[1769688556632,0.001,2933.0,2932.6,12.52407425]
[1769688556929,0.001,2933.0,2932.6,11.67158841]
[1769688557134,0.001,2933.0,2932.5,0.85251207]
[1769688557431,0.001,2933.0,2932.5,12.52410048]
[1769688559255,0.001,2933.0,2932.5,12.52610048]
[1769688559565,0.001,2932.8,2932.5,12.52610048]
[1769688559768,0.001,2933.0,2932.5,12.52610048]
[1769688561774,0.001,2933.0,2932.6,11.70568784]
[1769688561926,0.001,2933.0,2932.6,11.67158841]
[1769688562284,10.97215769,2933.5,2932.6,11.67158841]
[1769688563453,10.97215769,2933.5,2932.7,0.85245678]
[1769688563761,3.40859007,2933.8,2932.7,12.52404519]
[1769688563762,11.82433627,2933.7,2932.7,12.52404519]
[1769688563970,13.34763638,2933.7,2932.7,12.52404519]
[1769688573361,13.34763638,2933.7,2932.7,0.85245678]
[1769688573563,13.34763638,2933.7,2932.8,0.002]
[1769688573864,0.001,2933.5,2932.8,0.002]
[1769688574458,11.12251084,2933.5,2932.8,0.002]
[1769688574659,12.47230979,2933.5,2932.8,0.002]
[1769688575065,1.35079895,2933.5,2932.8,10.60531958]
[1769688575245,0.001,2933.5,2932.8,11.45772953]
[1769688575443,0.85324328,2933.5,2932.8,10.60531958]
[1769688575654,0.001,2933.5,2932.8,11.45773732]
[1769688580076,0.85210042,2934.0,2933.1,10.60331958]
[1769688580248,2.17118219,2933.9,2933.1,10.60331958]
[1769688580456,11.97357031,2934.1,2933.1,10.60331958]
[1769688581665,11.12151084,2934.1,2933.2,0.85231146]
[1769688581972,11.97356241,2934.1,2933.2,0.85231146]
[1769688583174,11.97356241,2934.1,2933.2,11.45563104]
[1769688585673,11.12151084,2934.1,2933.2,11.45563104]
[1769688586374,0.001,2933.9,2933.2,11.45563104]
[1769688594247,0.001,2933.9,2933.3,10.60331958]
[1769688596603,0.001,2933.9,2933.4,0.85225335]
[1769688597571,0.001,2933.9,2933.4,11.78045898]
[1769688598290,0.001,2933.9,2933.4,11.78245898]
[1769688598690,0.001,2933.7,2933.4,11.78245898]
[1769688601564,0.001,2933.7,2933.4,10.93020563]
[1769688603562,0.001,2933.7,2933.4,0.002]
[1769688606520,10.95587529,2933.7,2933.4,0.002]
[1769688606719,12.05046282,2933.6,2933.0,0.002]
[1769688607012,12.05046282,2933.6,2933.0,0.8543604]
[1769688607200,0.001,2933.7,2933.2,11.78051661]
[1769688607391,0.001,2933.7,2933.2,10.92820563]
[1769688609919,10.95587529,2933.7,2933.0,0.002]
[1769688610216,0.001,2933.7,2933.0,0.85436845]
[1769688612173,10.95487529,2933.6,2933.0,0.002]
[1769688612322,10.95487529,2933.6,2932.8,0.002]
[1769688612516,0.001,2933.5,2932.8,11.7826325]
[1769688612716,0.001,2933.5,2933.1,0.002]
[1769688613212,10.95587529,2933.5,2932.5,0.002]
[1769688613544,10.95487529,2933.3,2932.5,0.002]
[1769688615024,10.95487529,2933.1,2932.5,0.002]
[1769688615627,10.95487529,2933.1,2932.3,0.002]
[1769688617029,10.95487529,2933.0,2932.3,0.03610292]
[1769688617259,10.95487529,2933.0,2932.3,0.002]
[1769688619068,11.80726372,2933.0,2932.3,0.03610292]
[1769688619435,11.80726372,2933.0,2932.3,0.002]
[1769688619632,11.80726372,2933.0,2932.3,0.03610292]
[1769688620375,0.85238843,2933.0,2932.3,10.96430855]
[1769688620534,0.85238843,2933.0,2932.3,10.93020563]
[1769688621361,10.95487529,2933.2,2932.3,10.93020563]
[1769688621576,1.18071577,2933.1,2932.3,10.93020563]
[1769688621975,12.13559106,2933.1,2932.3,10.93020563]
[1769688623333,0.85236958,2933.0,2932.3,10.93020563]
[1769688624269,0.85236958,2933.0,2932.5,0.002]
[1769688634859,0.85235723,2933.1,2932.5,0.002]
[1769688636138,0.001,2932.9,2932.5,0.002]
[1769688641473,0.001,2932.9,2932.5,9.97186345]
[1769688642173,0.8522922,2933.3,2932.5,9.97186345]
[1769688643478,0.85225335,2933.4,2932.5,10.82435327]
[1769688647755,0.001,2933.2,2932.5,10.82435327]
[1769688653487,10.01925966,2933.2,2932.5,0.002]
[1769688653688,11.02118563,2933.2,2932.5,0.85450796]
[1769688654259,1.00292597,2933.2,2932.5,10.82437141]
[1769688654458,0.001,2933.2,2932.5,10.82437141]
[1769688654688,0.001,2933.2,2932.6,10.00396288]
[1769688654871,0.001,2933.2,2932.6,9.96986345]
[1769688655076,0.001,2933.2,2932.7,0.03409827]
[1769688655795,0.001,2933.2,2932.7,10.6315826]
[1769688656093,0.001,2933.2,2932.7,10.59748433]
[1769688656793,0.001,2933.2,2932.7,11.44993146]
[1769688659496,0.001,2933.2,2932.7,11.45193146]
[1769688659797,0.001,2933.0,2932.7,11.45193146]
[1769688661970,0.001,2933.2,2932.7,11.45193146]
[1769688662602,0.001,2933.5,2932.8,10.59748433]
[1769688663495,0.001,2933.5,2932.9,11.44988297]
[1769688673211,0.001,2933.5,2933.1,0.002]
[1769688673704,0.001,2933.3,2933.1,0.002]
[1769688675521,11.01249021,2933.9,2933.1,0.002]
[1769688675715,11.60245055,2933.8,2933.1,0.002]
[1769688675881,11.60245055,2933.8,2932.9,10.5946771]
[1769688677616,0.8521662,2933.7,2932.9,11.44706005]
[1769688678102,11.01253473,2933.7,2932.9,11.44706005]
[1769688680533,0.8521662,2933.7,2932.9,11.44706005]
[1769688681822,12.45460893,2933.8,2932.9,11.44706005]
[1769688682206,1.58631271,2933.7,2932.9,10.59748433]
[1769688682521,11.01256378,2933.6,2932.9,0.85239855]
[1769688682720,10.16036853,2933.6,2932.9,0.85239855]
[1769688684817,11.01257818,2933.6,2932.7,11.45193702]
[1769688685024,12.61332468,2933.6,2932.7,11.45193702]
[1769688685391,11.76111503,2933.6,2932.7,11.45193702]
[1769688687732,11.76111503,2933.6,2933.1,0.002]
[1769688687911,0.001,2933.4,2933.1,0.002]
[1769688700159,0.001,2933.2,2933.1,0.002]
[1769688702757,9.57963471,2933.9,2933.1,0.002]
[1769688702933,10.53759818,2933.8,2933.1,0.002]
[1769688705849,0.8521662,2933.7,2933.1,0.002]
[1769688709255,10.43180091,2933.7,2933.1,0.002]
[1769688712966,0.001,2933.5,2933.1,0.002]
[1769688731987,0.001,2933.5,2933.1,9.54413758]
[1769688732978,9.8842345,2934.0,2933.1,9.54413758]
[1769688734290,9.8842345,2934.0,2933.2,0.85231146]
[1769688734764,9.8842345,2934.0,2933.2,10.39444904]
[1769688735398,9.03213814,2934.0,2933.2,10.39444904]
[1769688736098,0.001,2933.3,2933.2,10.39444904]
[1769688736285,9.03213814,2934.0,2933.2,10.39444904]
[1769688737367,9.03213814,2934.2,2933.2,10.39444904]
[1769688737566,10.38086012,2934.2,2933.2,10.39444904]
[1769688740199,9.88418817,2934.1,2933.2,10.39444904]
[1769688747976,0.001,2934.0,2933.2,10.39444904]
[1769688758805,9.04144632,2934.0,2933.2,10.39444904]
[1769688759130,9.04144632,2934.0,2933.1,0.002]
[1769688759332,9.04044632,2933.8,2933.1,0.002]
[1769688760795,9.89260254,2933.8,2933.1,0.002]
[1769688762612,9.04044632,2933.8,2933.1,0.002]
[1769688764342,1.84147751,2933.9,2933.1,0.002]
[1769688764840,1.84147751,2933.9,2933.1,0.85434052]
[1769688765059,1.42912592,2933.8,2933.1,0.85434052]
[1769688765822,1.42912592,2933.8,2933.1,9.65664096]
[1769688766031,0.85212787,2933.9,2933.1,9.65664096]
[1769688767534,9.04044632,2933.9,2933.1,9.65664096]
[1769688767733,9.04044632,2933.9,2933.1,8.80430044]
[1769688768044,9.04044632,2933.9,2933.1,0.002]
[1769688768248,0.90414463,2933.8,2933.1,0.002]
[1769688769149,0.90414463,2933.8,2933.1,0.85432961]
[1769688769320,9.04044632,2933.9,2933.1,0.85432961]
[1769688769847,0.85213715,2933.8,2933.1,0.002]
[1769688770839,0.85213715,2933.8,2933.3,0.002]
[1769688771042,9.04044632,2933.7,2933.3,0.002]
[1769688777742,9.89261425,2933.7,2933.3,0.002]
[1769688778044,10.37065224,2933.7,2933.3,0.002]
[1769688779740,11.22282229,2933.7,2933.3,0.002]
[1769688781869,10.37065224,2933.7,2933.3,0.002]
[1769688783453,1.33020592,2933.7,2933.3,0.002]
[1769688783650,0.85315913,2933.8,2933.3,0.002]
[1769688784363,0.001,2933.7,2933.3,0.002]
[1769688796110,0.001,2933.5,2933.3,0.002]
[1769688803524,0.001,2933.5,2933.3,7.86721231]
[1769688804332,0.001,2933.5,2933.3,0.002]
[1769688808815,0.001,2933.7,2933.3,0.002]
[1769688814306,0.75014279,2933.7,2933.3,0.002]
[1769688816140,1.60230947,2933.7,2933.3,0.002]
[1769688818331,0.75014279,2933.7,2933.3,0.002]
[1769688819447,9.09275893,2933.7,2933.1,0.002]
[1769688819651,0.001,2933.5,2933.1,0.002]
[1769688822054,7.49142785,2933.5,2932.7,0.002]
[1769688822346,7.49042785,2933.3,2932.7,0.002]
[1769688825053,8.34273931,2933.2,2932.5,0.73252321]
[1769688825241,8.34273931,2933.2,2932.3,0.002]
[1769688825556,8.66562397,2933.1,2932.3,0.002]
[1769688829837,0.85236958,2933.0,2932.3,0.002]
[1769688830160,0.85236958,2933.0,2932.3,1.02541749]
[1769688831163,0.85236958,2933.0,2932.5,0.002]
[1769688836168,0.80236958,2933.0,2932.5,0.002]
[1769688836376,2.09009629,2933.0,2932.5,0.002]
[1769688839378,1.28772671,2933.0,2932.5,7.84962014]
[1769688839576,0.85231146,2933.2,2932.5,7.84962014]
[1769688842885,0.001,2933.0,2932.5,7.84962014]
[1769688844285,0.001,2933.0,2932.5,0.002]
[1769688847185,8.05120427,2933.0,2932.3,0.002]
[1769688847387,8.05020427,2932.8,2932.2,0.002]
[1769688847592,8.05020427,2932.8,2932.0,0.002]
[1769688848191,8.05020427,2932.6,2932.0,0.002]
[1769688849665,8.90271918,2932.5,2932.0,0.002]
[1769688854496,8.90271918,2932.5,2932.2,0.002]
[1769688854696,1.2312743,2932.4,2932.2,0.002]
[1769688857205,2.08382037,2932.4,2932.2,0.002]
[1769688858417,1.2312743,2932.4,2932.2,0.002]
[1769688858597,3.96383122,2932.8,2932.2,0.002]
[1769688858804,0.85245678,2932.7,2932.2,0.002]
[1769688866828,0.001,2932.5,2932.4,0.002]
[1769688876636,0.001,2932.5,2932.2,0.002]
[1769688877037,0.82681439,2932.5,2932.2,0.002]
[1769688879050,1.6793293,2932.5,2932.4,0.002]
[1769688883850,0.82681439,2932.5,2932.4,0.002]
[1769688884641,1.6793293,2932.5,2932.4,0.002]
[1769688885359,0.001,2932.5,2932.4,0.002]
[1769688889369,7.40568715,2932.5,2932.1,0.002]
[1769688889545,8.25723114,2932.4,2932.1,0.002]
[1769688891263,8.25723114,2932.4,2932.3,0.002]
[1769688891453,8.25723114,2932.4,2932.1,0.002]
[1769688891762,2.01937353,2932.4,2932.1,0.002]
[1769688895082,0.85324931,2933.5,2932.5,7.83356386]
[1769688895376,0.41661083,2933.3,2932.5,7.83356386]
[1769688895577,8.01251247,2933.3,2932.5,7.26627562]
[1769688895748,8.01251247,2933.2,2932.4,1.02341051]
[1769688896072,7.59590164,2933.2,2932.1,0.002]
[1769688896274,8.44827291,2933.0,2932.1,7.26827562]
[1769688896459,8.44827291,2933.0,2932.2,1.75049742]
[1769688896655,7.59590164,2933.0,2932.2,1.75049742]
[1769688898350,7.59590164,2933.0,2932.3,0.85257306]
[1769688901247,0.41661083,2932.9,2932.3,0.85257306]
[1769688903487,0.41661083,2932.9,2932.3,0.85457306]
[1769688903689,0.001,2932.8,2932.3,0.85457306]
[1769688903889,0.001,2932.8,2932.3,1.40462793]
[1769688905807,0.001,2932.8,2932.3,8.67090355]
[1769688906185,0.85235696,2933.1,2932.4,7.26627562]
[1769688906386,0.41661083,2933.0,2932.4,7.26627562]
[1769688910020,0.41661083,2933.0,2932.4,8.11881837]
[1769688913226,0.41661083,2933.0,2932.3,1.87802265]
[1769688913725,0.41661083,2933.0,2932.4,0.85254299]
[1769688915794,0.41661083,2933.0,2932.5,0.002]
[1769688916222,0.41661083,2933.0,2932.5,8.18290595]
[1769688916426,0.85323181,2933.5,2932.6,7.26627562]
[1769688916595,0.85323181,2933.5,2932.6,8.2895814]
[1769688916790,0.85323181,2933.5,2932.6,7.26627562]
[1769688916998,0.85323181,2933.5,2932.7,8.6520335]
[1769688917829,0.85323181,2933.5,2932.7,9.50447401]
[1769688918913,0.001,2933.5,2932.8,7.26627562]
[1769688919308,0.001,2933.5,2932.8,8.28957093]
[1769688919511,0.001,2933.5,2932.9,0.91463033]
[1769688921503,0.001,2933.5,2932.8,9.14197908]
[1769688927872,0.001,2933.5,2933.0,0.002]
[1769688928048,0.001,2933.3,2933.0,0.002]
[1769688934857,0.001,2933.7,2933.0,0.002]
[1769688934858,0.001,2933.7,2933.1,7.38055228]
[1769688935152,0.001,2933.7,2933.1,8.40364519]
[1769688935315,0.001,2933.7,2933.2,0.84056452]
[1769688935510,0.001,2933.7,2933.3,7.38055228]
[1769688936124,0.001,2933.7,2933.4,0.85205211]
[1769688936848,0.001,2933.7,2933.4,9.08484761]
[1769688937157,0.001,2933.7,2933.4,8.23260439]
[1769688937346,0.001,2933.7,2933.4,9.08485182]
[1769688938351,0.001,2933.7,2933.4,8.23260439]
[1769688938561,0.001,2933.7,2933.4,9.08485374]
[1769688938937,0.001,2933.7,2933.4,0.85224935]
[1769688940053,0.001,2933.5,2933.4,0.85224935]
[1769688940260,0.001,2933.5,2933.4,1.28876726]
[1769688940866,0.001,2933.5,2933.4,1.67647573]
[1769688942657,0.001,2933.5,2933.4,1.28876726]
[1769688943328,0.001,2933.5,2933.4,8.66931954]
[1769688946373,0.001,2933.5,2933.4,1.28876726]
[1769688953682,0.001,2933.5,2933.4,0.85224935]
[1769688953869,0.001,2933.5,2933.3,0.002]
[1769688960671,7.20399175,2933.5,2933.0,0.002]
[1769688961754,8.05624046,2933.5,2933.0,0.002]
[1769688961955,7.20299175,2933.3,2932.8,0.002]
[1769688963456,7.20299175,2933.3,2933.2,0.002]
[1769688966774,8.05527416,2933.3,2933.2,0.002]
[1769688967164,7.20299175,2933.3,2933.2,0.002]
[1769688967365,8.46416085,2933.3,2933.2,0.002]
[1769688969372,1.2611691,2933.3,2933.2,0.002]
[1769688973804,0.001,2933.5,2933.2,0.002]
[1769688976283,0.001,2933.5,2933.2,0.004]
[1769688976480,0.001,2933.5,2932.8,0.002]
[1769688976481,7.20399175,2933.5,2932.8,0.002]
[1769688976800,7.20399175,2933.5,2932.5,0.85449866]
[1769688977175,7.20399175,2933.5,2932.5,0.002]
[1769688977388,7.20299175,2933.3,2932.5,0.002]
[1769688978392,7.20299175,2933.1,2932.3,0.002]
[1769688982902,0.85236958,2933.0,2932.3,0.002]
[1769688983110,8.05534936,2933.1,2932.3,7.15899342]
[1769688983688,6.33,2933.3,2932.3,7.15899342]
[1769688983889,8.0562451,2933.5,2932.3,7.15899342]
[1769688984083,7.20399175,2933.5,2932.3,7.18627204]
[1769688984297,8.05622209,2933.5,2932.3,7.18627204]
[1769688984515,8.05622209,2933.5,2932.4,7.15699342]
[1769688986428,0.001,2933.5,2932.6,6.65224926]
[1769688987827,0.001,2932.9,2932.6,6.65224926]
[1769688988526,0.001,2933.5,2932.7,7.50470604]
[1769688996834,6.62086071,2933.5,2932.7,7.50470604]
[1769688997925,7.47308994,2933.5,2932.7,0.85245678]
[1769688999145,0.001,2933.3,2932.7,0.85245678]
[1769689002191,0.001,2933.3,2932.6,3.4098685]
[1769689010550,0.38770847,2934.0,2933.3,6.56810764]
[1769689010858,6.61986071,2934.4,2933.5,6.56810764]
[1769689011064,0.001,2933.3,2932.9,6.56810764]
[1769689011266,0.001,2933.3,2932.8,0.002]
[1769689011473,0.001,2933.3,2932.8,6.57010764]
[1769689013179,0.001,2933.3,2932.5,0.002]
[1769689013180,6.62086071,2933.3,2932.5,0.002]
[1769689013488,6.62086071,2933.3,2932.5,3.4120494]
[1769689013708,6.62086071,2933.3,2932.7,0.85245522]
[1769689013996,7.28294678,2933.3,2932.7,0.85245522]
[1769689014190,7.28294678,2933.3,2932.8,0.85242496]
[1769689015294,7.28294678,2933.3,2932.5,0.002]
[1769689017093,0.24125606,2933.8,2932.5,6.14857296]
[1769689017268,6.24913846,2933.7,2932.5,6.14857296]
[1769689017469,6.89817791,2933.6,2932.6,6.9990588]
[1769689021450,6.89817791,2933.6,2932.5,3.41194339]
[1769689021451,6.24913846,2933.4,2932.5,0.002]
[1769689021813,6.24913846,2933.4,2932.5,0.85451104]
[1769689022842,6.24913846,2933.4,2932.8,0.002]
[1769689024345,6.24913846,2933.2,2932.8,0.002]
[1769689024540,0.71014209,2933.1,2932.8,0.002]
[1769689027942,0.64903945,2933.6,2932.8,0.002]
[1769689028658,0.64903945,2933.6,2932.8,6.14857296]
[1769689028817,0.64903945,2933.6,2932.9,0.85239864]
[1769689029445,0.64903945,2933.6,2932.8,7.00099128]
[1769689029649,1.50123923,2933.6,2932.8,7.00099128]
[1769689029845,0.77503777,2933.5,2932.8,7.00099128]
[1769689030045,0.64903945,2933.6,2932.8,7.00099128]
[1769689030219,1.50123967,2933.6,2932.8,7.00099128]
[1769689030951,1.09339475,2933.8,2932.8,7.00099128]
[1769689031157,0.24125606,2933.8,2932.8,7.00099128]
[1769689031860,1.09339511,2933.8,2932.8,7.00099128]
[1769689033152,6.24913846,2933.7,2932.8,7.00099128]
[1769689033352,6.98339182,2933.6,2932.8,0.002]
[1769689034959,6.98339182,2933.6,2933.0,0.002]
[1769689035164,0.8522243,2933.5,2933.0,0.002]
[1769689036257,6.24913846,2933.4,2932.5,0.002]
[1769689036555,6.95927474,2933.3,2932.5,0.002]
[1769689036953,6.95927474,2933.3,2932.5,6.14857296]
[1769689037629,0.85231146,2933.2,2932.5,6.14857296]
[1769689040926,0.85231146,2933.2,2932.5,7.00108715]
[1769689041546,0.85231146,2933.2,2932.5,6.14857296]
[1769689043234,0.85231146,2933.2,2932.5,7.00108758]
[1769689046346,0.85229787,2933.3,2932.6,6.75980011]
[1769689046879,0.85229787,2933.3,2932.7,0.002]
[1769689047177,0.001,2933.0,2932.7,0.002]
[1769689048581,0.001,2933.0,2932.7,6.76180011]
[1769689053989,0.001,2933.0,2932.7,0.002]
[1769689060717,7.00491972,2933.0,2932.5,0.002]
[1769689061101,0.85239864,2932.9,2932.5,0.002]
[1769689061617,1.5676828,2933.0,2932.5,0.002]
[1769689064009,1.5676828,2933.0,2932.5,6.37592278]
[1769689064216,0.85338906,2933.0,2932.5,6.37592278]
[1769689064913,0.001,2933.0,2932.5,6.37592278]
[1769689065813,0.85337351,2933.0,2932.5,6.37592278]
[1769689066397,0.001,2933.0,2932.5,6.37592278]
[1769689066599,0.001,2933.0,2932.5,0.002]
[1769689070020,0.001,2933.0,2932.7,0.002]
[1769689070219,0.001,2932.8,2932.7,0.002]
[1769689094955,0.001,2932.8,2932.3,6.72432705]
[1769689096963,0.001,2932.8,2932.3,7.39695976]
[1769689100670,0.001,2932.8,2932.3,0.67463271]
[1769689101271,0.001,2932.8,2932.3,6.72432705]
[1769689104989,0.001,2932.8,2932.5,0.002]
[1769689105152,0.001,2932.6,2932.5,0.002]
[1769689106488,0.001,2932.6,2932.3,0.002]
[1769689109580,0.001,2932.6,2932.0,0.002]
[1769689109780,1.081762,2932.6,2932.0,0.002]
[1769689113603,1.93426793,2932.6,2932.0,0.002]
[1769689114204,8.33768431,2932.6,2932.0,0.002]
[1769689117004,8.33768431,2932.6,2932.2,0.002]
[1769689118213,8.33768431,2932.6,2931.9,1e-08]
[1769689118506,1.17476156,2932.5,2931.9,1e-08]
[1769689119632,0.85254399,2932.4,2931.9,1e-08]
[1769689120010,7.25596037,2932.4,2931.9,1e-08]
[1769689121323,7.25596037,2932.4,2931.8,1e-08]
[1769689122202,7.25596037,2932.4,2931.6,1e-08]
[1769689122398,6.40341638,2932.2,2931.6,1e-08]
[1769689123939,0.85263121,2932.1,2931.6,1e-08]
[1769689126946,7.25604759,2932.1,2931.6,1e-08]
[1769689128943,7.25604759,2932.1,2931.8,0.002]
[1769689129243,7.25604759,2932.1,2931.6,1e-08]
[1769689129411,1.06665725,2932.0,2931.6,1e-08]
[1769689130138,0.85260214,2932.2,2931.6,6.30721159]
[1769689131041,3.4103364,2932.3,2931.6,6.30721159]
[1769689136268,1.1904231,2932.4,2931.6,6.30721159]
[1769689136841,0.33787581,2932.4,2931.6,7.15998766]
[1769689137042,0.33787581,2932.4,2931.8,6.63129001]
[1769689138147,1.1904226,2932.4,2931.8,6.63129001]
[1769689140543,1.1904226,2932.4,2931.6,6.63129002]
[1769689141254,1.1904226,2932.4,2931.6,1e-08]
[1769689141255,7.56822007,2932.4,2931.6,1e-08]
[1769689141458,0.001,2932.2,2931.6,1e-08]
[1769689141661,0.75792201,2932.2,2931.6,1e-08]
[1769689142356,0.001,2932.2,2931.6,1e-08]
[1769689146359,6.37879747,2932.2,2931.6,1e-08]
[1769689148147,7.23042868,2932.1,2931.6,1e-08]
[1769689152086,0.85263121,2932.1,2931.6,1e-08]
[1769689152292,3.41152487,2932.2,2931.6,1e-08]
[1769689152492,1.31996258,2932.1,2931.6,1e-08]
[1769689153096,1.31996258,2932.1,2931.8,0.002]
[1769689153252,0.001,2932.0,2931.8,0.002]
[1769689154490,0.8536603,2932.0,2931.8,0.002]
[1769689155158,0.8536603,2932.0,2931.6,1e-08]
[1769689155362,0.55842641,2931.9,2931.6,1e-08]
[1769689157331,0.85271846,2931.8,2931.6,1e-08]
[1769689159023,0.85271846,2931.8,2931.4,1e-08]
[1769689161106,0.85271846,2931.8,2931.4,6.63129002]
[1769689163815,0.85271846,2931.8,2931.3,0.002]
[1769689164016,0.48219063,2931.7,2931.3,0.002]
[1769689164821,0.001,2931.6,2931.3,0.002]
[1769689165720,0.85377664,2931.6,2931.3,0.002]
[1769689182435,0.001,2931.6,2931.3,0.002]
[1769689185672,6.51048499,2931.4,2930.8,0.002]
[1769689185965,7.74160904,2931.3,2930.5,0.002]
[1769689186165,1.23112405,2931.3,2930.5,6.53476176]
[1769689186366,6.51148499,2931.6,2930.9,6.53276176]
[1769689186367,0.001,2931.6,2930.9,6.53276176]
[1769689187963,0.001,2931.6,2931.1,0.002]
[1769689188141,0.001,2931.4,2931.1,0.002]
[1769689193561,1.19066279,2931.6,2931.1,0.002]
[1769689193874,0.33787581,2931.6,2931.1,6.53476176]
[1769689194275,0.33787581,2931.6,2931.1,7.27373578]
[1769689195767,0.33787581,2931.6,2931.1,8.12665592]
[1769689195972,0.33787581,2931.6,2931.1,7.27373578]
[1769689198358,0.33787581,2931.6,2931.1,6.53476176]
[1769689198674,1.1906563,2931.6,2931.1,6.53476176]
[1769689199473,1.1906563,2931.6,2931.1,0.002]
[1769689199774,0.85378049,2931.6,2931.1,0.002]
[1769689199970,0.001,2931.4,2931.1,0.002]
[1769689200544,6.20786289,2931.4,2930.9,0.002]
[1769689200768,6.82764918,2931.3,2930.9,0.002]
[1769689201260,0.62078629,2931.3,2930.9,0.002]
[1769689201648,0.62078629,2931.3,2930.9,6.75632504]
[1769689201852,0.001,2931.6,2930.9,6.75632504]
[1769689202076,0.001,2931.6,2930.9,7.60930025]
[1769689202276,0.001,2931.6,2930.9,6.75632504]
[1769689202468,0.001,2931.6,2930.9,7.60929687]
[1769689202958,0.001,2931.6,2930.9,6.75632504]
[1769689203379,0.33687581,2931.5,2930.9,6.75632504]
[1769689204082,0.33687581,2931.5,2930.9,7.60930521]
[1769689204453,0.33687581,2931.5,2930.9,6.75632504]
[1769689204852,1.18968332,2931.5,2930.9,6.75632504]
[1769689205075,1.18968855,2931.5,2930.9,6.75632504]
[1769689205383,0.33687581,2931.5,2930.9,6.75632504]
[1769689206086,0.33687581,2931.5,2930.9,7.60929757]
[1769689206782,0.33687581,2931.5,2930.9,6.75632504]
[1769689209687,0.33687581,2931.5,2930.9,7.60930029]
[1769689209899,0.33687581,2931.5,2931.0,6.75432504]
[1769689211286,0.33687581,2931.5,2931.1,0.002]
[1769689214195,0.33687581,2931.5,2931.1,6.75632504]
[1769689216597,0.33687581,2931.5,2931.1,0.002]
[1769689218596,1.18968217,2931.5,2931.1,0.002]
[1769689218975,1.64984998,2931.5,2931.1,0.002]
[1769689226916,0.79704362,2931.5,2931.1,0.002]
[1769689227584,1.64985267,2931.5,2931.1,0.002]
[1769689235030,0.79704362,2931.5,2931.1,0.002]
[1769689235238,0.33687581,2931.5,2931.1,0.002]
[1769689235432,0.33687581,2931.5,2931.3,0.002]
[1769689243537,1.18968634,2931.5,2931.3,0.002]
[1769689243941,0.33687581,2931.5,2931.3,0.002]
[1769689244316,1.18968261,2931.5,2931.3,0.002]
[1769689245247,1.72135426,2931.5,2931.3,0.002]
[1769689246352,0.86854746,2931.5,2931.3,0.002]
[1769689247452,0.33687581,2931.5,2931.3,0.002]
[1769689253530,1.18968354,2931.5,2931.3,0.002]
[1769689254053,0.33687581,2931.5,2931.3,0.002]
[1769689258377,1.18968598,2931.5,2931.3,0.002]
[1769689258667,0.33687581,2931.5,2931.3,0.002]
[1769689284822,7.80393757,2931.5,2930.9,0.002]
[1769689291619,7.80393757,2931.5,2930.5,0.002]
[1769689292929,7.80393757,2931.5,2931.1,0.002]
[1769689293206,7.46706176,2931.5,2930.9,0.002]
[1769689293414,6.51594913,2931.3,2930.9,0.002]
[1769689293606,6.51594913,2931.3,2930.5,0.002]
[1769689296540,0.85292211,2931.1,2930.5,0.002]
[1769689296743,1.18979792,2931.1,2930.5,0.002]
[1769689304491,1.18979792,2931.1,2930.7,0.002]
[1769689304640,1.19079792,2931.1,2930.7,0.002]
[1769689304856,0.46024864,2931.0,2930.7,0.002]
[1769689308881,0.33787581,2931.1,2930.7,6.64169428]
[1769689309049,0.85284542,2931.4,2930.8,6.63969428]
[1769689309243,6.33,2931.5,2930.8,6.63969428]
[1769689310478,6.33,2931.5,2930.8,7.4926757]
[1769689311058,7.1828062,2931.5,2930.8,7.4926757]
[1769689311261,6.33,2931.5,2931.0,6.63969428]
[1769689312752,0.001,2931.6,2931.0,6.63969428]
[1769689314382,0.001,2931.6,2930.8,6.63969428]
[1769689314588,6.51694913,2931.6,2930.7,0.002]
[1769689314775,0.85283482,2931.4,2930.7,0.002]
[1769689316063,0.85283482,2931.4,2930.7,6.29841786]
[1769689316483,0.85283482,2931.4,2931.0,0.002]
[1769689316680,0.85383482,2931.4,2931.0,0.002]
[1769689325960,0.001,2931.6,2931.1,6.29641786]
[1769689326163,0.001,2931.6,2931.1,6.92625965]
[1769689328663,0.001,2931.3,2931.1,6.92625965]
[1769689332598,0.001,2931.3,2931.1,0.62984179]
[1769689332915,0.001,2931.3,2931.0,0.002]
[1769689333394,6.26402693,2931.3,2931.0,0.002]
[1769689333568,6.26402693,2931.3,2930.8,0.002]
[1769689334873,0.85289301,2931.2,2930.8,0.002]
[1769689335085,1.90572873,2931.2,2930.8,0.002]
[1769689335396,0.85289301,2931.2,2930.8,0.002]
[1769689336178,0.001,2931.3,2930.8,6.29841786]